Cogmind - Beta 9.3 @@@ ROGUE MODE // 2019.12.23 @ 19:55:07 // Winter2019/RPGLIKE Player: Exeight Result: Destroyed by Y-54 Guardian with Flak Gun Performance ------------- Evolutions (3) 1500 Regions Visited (8) 1600 Robots Destroyed (108) 540 Value Destroyed (2231) 2231 Prototype IDs (8) 160 Alien Tech Used (0) 0 Bonus (200) 200 TOTAL SCORE: 6231 Bonus ------- High Alert Combat Kills 116 Follower Combat Kills 84 Cogmind --------- Core Integrity 0/600 Matter 273/300 Energy 240/240 System Corruption 0% Temperature Cool (280) Movement Flying (96) Ox1 Location -7/Factory Parts ------- > --- POWER (3) -------- Light Deuterium Engine Light Deuterium Engine Light Nuclear Core > --- PROPULSION (5) --- Improved Flight Unit Improved Flight Unit Improved Flight Unit Improved VTOL Module > --- UTILITY (5) ------ Heat Sink Improved Sensor Array Advanced Signal Interpreter Core Analyzer Particle Charger > --- WEAPON (1) ------- Beamcaster > --- INVENTORY (2) ---- Cesium-ion Thruster Advanced EMP Blaster Peak State ------------ > --- POWER ------------ Light Deuterium Engine Light Deuterium Engine Light Nuclear Core > --- PROPULSION ------- Flight Unit Improved Flight Unit Improved Flight Unit Improved Flight Unit Improved VTOL Module > --- UTILITY ---------- Heat Sink Improved Sensor Array Advanced Signal Interpreter Core Analyzer Particle Charger > --- WEAPON ----------- Beamcaster > --- INVENTORY -------- Cesium-ion Thruster Advanced EMP Blaster [Rating: 41] Favorites ----------- Power Light Nuclear Core Engine Light Ion Engine Power Core Light Nuclear Core Propulsion Flight Unit Leg Aluminum Leg Hover Unit Gravmag System Flight Unit Flight Unit Utility Heat Sink Device Heat Sink Processor Advanced Signal Interpreter Weapon Beamcaster Energy Gun Beamcaster Energy Cannon Particle Cannon Ballistic Gun Light Assault Rifle Launcher Rocket Launcher Build | -11 -10 -10 -9 -9 -9 -8 -8 -7 ------- Run | Scr Mat Min Mat Min Exi Min Mat Fac Slots Evolved 10 | 1 2 1 2 . . . 2 2 Power 2 | . . . . . . . . 2 Propulsion 4 | 1 1 . 1 . . . 1 . Utility 4 | . 1 1 1 . . . 1 . Weapon . | . . . . . . . . . Parts Attached 61 | 4 11 4 15 4 . 2 19 2 Power 11 | 1 1 1 4 . . . 2 2 Engine 7 | 1 1 . 2 . . . 1 2 Core 4 | . . 1 2 . . . 1 . Reactor . | . . . . . . . . . Propulsion 15 | 2 3 . 1 2 . . 7 . Treads . | . . . . . . . . . Leg 2 | 2 . . . . . . . . Wheel . | . . . . . . . . . Hover 3 | . . . . 2 . . 1 . Flight 10 | . 3 . 1 . . . 6 . Utility 8 | . 2 1 3 . . . 2 . Device 4 | . 2 . 1 . . . 1 . Storage . | . . . . . . . . . Processor 4 | . . 1 2 . . . 1 . Hackware . | . . . . . . . . . Protection . | . . . . . . . . . Artifact . | . . . . . . . . . Weapon 27 | 1 5 2 7 2 . 2 8 . Energy Gun 12 | 1 . . 3 1 . 1 6 . Energy Cannon 8 | . 3 1 3 1 . . . . Ballistic Gun 2 | . 2 . . . . . . . Ballistic Cannon . | . . . . . . . . . Launcher 5 | . . 1 1 . . 1 2 . Special Weapon . | . . . . . . . . . Impact Weapon . | . . . . . . . . . Slashing Weapon . | . . . . . . . . . Piercing Weapon . | . . . . . . . . . Special Melee Weapon . | . . . . . . . . . Unidentified Prototypes 8 | . . . 3 . . . 5 . Parts Lost 1 | . . . . . . . . 1 Power . | . . . . . . . . . Propulsion 1 | . . . . . . . . 1 Utility . | . . . . . . . . . Weapon . | . . . . . . . . . Highest Loss Streak 1 | . . . . . . . . 1 Average Slot Usage (%) 97 | . 85 100 99 100 100 100 99 100 Engine 3 | . 17 3 . . . . . 3 Core 7 | . . 9 11 10 10 10 7 7 Leg 2 | . 13 . . . . . . . Hover 5 | . . . . 19 20 20 5 . Flight 32 | . 32 39 38 20 20 20 34 39 Device 20 | . 5 26 23 20 20 20 25 24 Processor 12 | . . 5 13 20 20 20 16 15 Energy Gun 5 | . 2 . . 8 10 9 8 7 Energy Cannon 4 | . 12 13 10 . . . . . Naked Turns . | . . . . . . . . . Heaviest Build 25 | 5 11 11 11 12 12 12 19 25 Greatest Support 28 | 20 20 12 16 19 19 19 28 28 Greatest Overweight (x) 4 | . . . . . . . 4 1 Average Overweight (x) . | . . . . . . . . . Largest Inventory Capacity 2 | 1 2 2 2 2 2 2 2 2 Average Capacity 1 | . 1 2 2 2 2 2 2 2 Most Carried 2 | 1 2 2 2 2 1 1 2 2 Average Carried 1 | . 1 2 1 1 1 1 1 2 Final Capacity 2 | 1 2 2 2 2 2 2 2 2 Final Carried 2 | . 2 2 2 1 1 1 2 2 Class Distribution -------------------- 78% | Scavenger-Mutant 11% | Mutant 10% | Scavenger-Sprinter Dominant Class ---------------- Mutant | -10/Materials Scavenger-Mutant | -10/Mines Scavenger-Mutant | -9/Materials Scavenger-Mutant | -9/Mines Scavenger-Mutant | -9/Exiles Scavenger-Mutant | -8/Mines Scavenger-Mutant | -8/Materials Scavenger-Sprinter | -7/Factory Resources | -11 -10 -10 -9 -9 -9 -8 -8 -7 ----------- Run | Scr Mat Min Mat Min Exi Min Mat Fac Matter Collected 862 | 237 122 44 155 52 . 64 188 . Remotely . | . . . . . . . . . Salvage Created 2803 | . 439 161 1258 96 . 106 743 . Parts 208 | . 33 17 83 9 . 15 50 1 Haulers Intercepted 11 | . 2 . 4 . . . 5 . Recyclers Shooed . | . . . . . . . . . Parts Field Recycled . | . . . . . . . . . Retrieved Matter . | . . . . . . . . . Parts Self-Destructed . | . . . . . . . . . Prevented . | . . . . . . . . . Kills | -11 -10 -10 -9 -9 -9 -8 -8 -7 ------- Run | Scr Mat Min Mat Min Exi Min Mat Fac Combat Hostiles Destroyed 85 | . 15 9 32 5 . 5 17 2 Guns 30 | . 4 . 2 3 . 2 17 2 Cannons 52 | . 11 9 30 2 . . . . AOE 3 | . . . . . . 3 . . Classes Destroyed 10 | . 6 . 1 1 . 1 1 . Worker 3 | . 1 . 1 . . 1 . . Builder 2 | . 1 . . . . 1 . . Tunneler 1 | . . . . . . 1 . . Hauler 11 | . 2 . 4 . . . 5 . Operator 4 | . 1 . 3 . . . . . Watcher 2 | . . . . . . . 2 . Swarmer 45 | . 9 3 17 2 . 5 9 . Grunt 27 | . 6 6 7 2 . . 4 2 Sentry 12 | . . . 8 . . . 4 . Assembled 1 | . . . . 1 . . . . Best Kill Streak 9 | . 3 3 9 2 . 6 5 2 Combat Bots Only 8 | . 3 3 8 2 . 3 5 2 Max Kills in Single Turn 2 | . 1 1 1 1 . 2 1 1 Gunslinging . | . . . . . . . . . Exploded 2 | . . . . . . 2 . . Melee . | . . . . . . . . . Uniques/NPCs Destroyed . | . . . . . . . . . Combat | -11 -10 -10 -9 -9 -9 -8 -8 -7 -------- Run | Scr Mat Min Mat Min Exi Min Mat Fac Damage Taken 2896 | . 392 236 1015 131 . 74 832 216 Core 2406 | . 320 194 852 106 . 62 694 178 Absorbed by Shields . | . . . . . . . . . Redirected to Core 1574 | . 202 139 525 80 . 34 475 119 Core Remaining (%) 82 | 100 . 100 . . . 100 29 . Volleys Fired 324 | . 76 23 104 24 . 18 70 9 Largest 1 | . 1 1 1 1 . 1 1 1 Hottest 75 | . 68 68 68 75 . 75 75 75 Shots Fired 324 | . 76 23 104 24 . 18 70 9 Gun 150 | . 33 . 6 20 . 14 68 9 Cannon 166 | . 43 22 97 4 . . . . Launcher 8 | . . 1 1 . . 4 2 . Special . | . . . . . . . . . Kinetic 9 | . 9 . . . . . . . Thermal 302 | . 67 22 98 24 . 14 68 9 Explosive 6 | . . 1 1 . . 4 . . Electromagnetic 7 | . . . 5 . . . 2 . Robot Hit Streak 27 | . 6 11 11 4 . 8 27 11 Robot Miss Streak 5 | . 5 1 3 1 . 1 2 . Penetration Max . | . . . . . . . . . Secondary Targets . | . . . . . . . . . Shots Hit Robots 232 | . 43 17 77 9 . 14 63 9 Core Hits 125 | . 23 12 42 5 . 9 31 3 Critical Hits 9 | . . . 8 1 . . . . Critical Kills 8 | . . . 7 1 . . . . Critical Parts Destroyed 1 | . . . 1 . . . . . Melee Attacks . | . . . . . . . . . Impact . | . . . . . . . . . Slashing . | . . . . . . . . . Piercing . | . . . . . . . . . Sneak Attacks . | . . . . . . . . . Combat Hostiles . | . . . . . . . . . Follow-up Attacks . | . . . . . . . . . Damage Inflicted 6026 | . 875 429 1770 223 . 668 1803 258 Guns 2814 | . 303 . 48 125 . 298 1782 258 Cannons 2821 | . 572 429 1722 98 . . . . Explosions 391 | . . . . . . 370 21 . Melee . | . . . . . . . . . Ramming . | . . . . . . . . . Kinetic 54 | . 54 . . . . . . . Thermal 5549 | . 821 429 1738 223 . 298 1782 258 Explosive 370 | . . . . . . 370 . . Electromagnetic 53 | . . . 32 . . . 21 . Impact . | . . . . . . . . . Slashing . | . . . . . . . . . Piercing . | . . . . . . . . . Highest Corruption 1 | . . . . . . . 1 . Average Corruption 1 | . . . . . . . 1 . Corruption Purged . | . . . . . . . . . Effects 2 | . . . . . . . 2 . Message Errors 1 | . . . . . . . 1 . Energy Discharges 1 | . . . . . . . 1 . Overload Shots . | . . . . . . . . . Overflow Damage 69 | . 19 . 35 . . 15 . . Projectiles 54 | . 19 . 35 . . . . . Explosions 15 | . . . . . . 15 . . Melee . | . . . . . . . . . Knockbacks . | . . . . . . . . . Impact . | . . . . . . . . . Kinetic . | . . . . . . . . . Secondary . | . . . . . . . . . Self-Inflicted Damage 49 | . . . . . . . 49 . Shots 2 | . . . . . . . 2 . Rammed . | . . . . . . . . . Targets Rammed . | . . . . . . . . . Kicked . | . . . . . . . . . Crushed . | . . . . . . . . . Highest Temperature 376 | . 226 160 281 220 . 136 376 268 Average Temperature 81 | . 66 67 85 93 . 66 90 85 Received Heat Transfer 672 | . 78 114 204 30 . . 189 57 Effects 5 | . 1 . 3 . . . 1 . Energy Bleed 1 | . . . . . . . 1 . Interference 4 | . 1 . 3 . . . . . Siege Activations . | . . . . . . . . . Robots Corrupted . | . . . . . . . . . Combat Hostiles . | . . . . . . . . . Parts Fried . | . . . . . . . . . Impact Corruptions . | . . . . . . . . . Robots Melted . | . . . . . . . . . Combat Hostiles . | . . . . . . . . . Parts Melted 13 | . 3 . 4 2 . . 3 1 Heat Transferred 8547 | . 1702 703 2775 333 . 444 2257 333 Parts Sabotaged . | . . . . . . . . . Parts Stolen . | . . . . . . . . . Parts Stripped . | . . . . . . . . . Power Chain Reactions . | . . . . . . . . . Missiles Intercepted . | . . . . . . . . . Alert | -11 -10 -10 -9 -9 -9 -8 -8 -7 ------- Run | Scr Mat Min Mat Min Exi Min Mat Fac Peak Influence 865 | . 348 323 865 554 . 301 395 149 Average Influence 244 | . 130 225 398 423 . 246 202 100 Maximum Alert Level 3 | . 1 1 3 2 . 1 1 . Low Security (%) 43 | 100 79 45 23 . . 22 43 100 Level 1 45 | . 20 54 38 53 . 77 56 . Level 2 9 | . . . 28 46 . . . . Level 3 1 | . . . 9 . . . . . Level 4 . | . . . . . . . . . Level 5 . | . . . . . . . . . High Security . | . . . . . . . . . Max Security . | . . . . . . . . . Squads Dispatched 10 | . 3 . 4 1 . . 1 1 Investigation 5 | . 1 . 2 1 . . 1 . Extermination . | . . . . . . . . . Reinforcement 4 | . 2 . 1 . . . . 1 Assault 1 | . . . 1 . . . . . Garrison . | . . . . . . . . . Intercept . | . . . . . . . . . Construction Impeded . | . . . . . . . . . Haulers Reinforced . | . . . . . . . . . Stealth | -11 -10 -10 -9 -9 -9 -8 -8 -7 --------- Run | Scr Mat Min Mat Min Exi Min Mat Fac Distress Signals 6 | . 1 . 3 1 . . 1 . Communications Jammed . | . . . . . . . . . Distress Signals . | . . . . . . . . . Times Spotted 140 | . 32 9 49 9 . 9 28 4 Peak Tracking Total 10 | . 5 3 10 3 . 3 5 2 Tactical Retreats 14 | . 2 . 3 1 . . 8 . Traps | -11 -10 -10 -9 -9 -9 -8 -8 -7 ------- Run | Scr Mat Min Mat Min Exi Min Mat Fac Traps Triggered 3 | . 1 . . . . . 1 1 Indirectly . | . . . . . . . . . Trap Hack Attempts . | . . . . . . . . . Triggered . | . . . . . . . . . Disarmed 4 | . 4 . . . . . . . Reprogrammed . | . . . . . . . . . Reused . | . . . . . . . . . Traps Extracted . | . . . . . . . . . Installed . | . . . . . . . . . Triggered . | . . . . . . . . . Machines | -11 -10 -10 -9 -9 -9 -8 -8 -7 ---------- Run | Scr Mat Min Mat Min Exi Min Mat Fac Machines Disabled 5 | . . 1 3 . . . 1 . Max in Single Turn 1 | . . 1 1 . . . 1 . Machines Sabotaged . | . . . . . . . . . Garrisons Compromised . | . . . . . . . . . Overloaded Fab Kills . | . . . . . . . . . Fab Network Shutdowns . | . . . . . . . . . Hacking | -11 -10 -10 -9 -9 -9 -8 -8 -7 --------- Run | Scr Mat Min Mat Min Exi Min Mat Fac Machines Accessed 23 | . 6 . 7 1 2 . 7 . Terminals 18 | . 5 . 6 . . . 7 . Fabricators . | . . . . . . . . . Repair Stations . | . . . . . . . . . Recycling Units 1 | . 1 . . . . . . . Scanalyzers 1 | . . . 1 . . . . . Garrison Access . | . . . . . . . . . Total Hacks 64 | . 11 . 13 1 31 . 8 . Successful 50 | . 6 . 5 1 31 . 7 . Failed 14 | . 5 . 8 . . . 1 . Catastrophic 1 | . . . 1 . . . . . Database Lockouts . | . . . . . . . . . Manual 25 | . 5 . 12 . . . 8 . Terminals 29 | . 10 . 11 . . . 8 . Fabricators . | . . . . . . . . . Repair Stations . | . . . . . . . . . Recycling Units 1 | . 1 . . . . . . . Scanalyzers 2 | . . . 2 . . . . . Garrison Access . | . . . . . . . . . Terminal Hacks 36 | . 2 . 2 1 31 . . . Record 31 | . . . . . 31 . . . Open Door 1 | . . . . 1 . . . . Disarm Traps 2 | . 1 . 1 . . . . . Registered Prototypes 1 | . 1 . . . . . . . Zone Layout 1 | . . . 1 . . . . . Fabricator Hacks . | . . . . . . . . . Repair Station Hacks . | . . . . . . . . . Recycling Unit Hacks . | . . . . . . . . . Scanalyzer . | . . . . . . . . . Garrison Access Hacks . | . . . . . . . . . Unauthorized Hacks 33 | . 9 . 9 . . . 15 . Terminals 12 | . 3 . 2 . . . 7 . Track 9 | . . . 2 . . . 7 . Botnet 3 | . 3 . . . . . . . Fabricators . | . . . . . . . . . Repair Stations . | . . . . . . . . . Recycling Units 1 | . 1 . . . . . . . Reject 1 | . 1 . . . . . . . Scanalyzers 1 | . . . 1 . . . . . Extract 1 | . . . 1 . . . . . Garrison Access . | . . . . . . . . . Data Cores Recovered 3 | . 1 . 2 . . . . . Used 2 | . 1 . 1 . . . . . Hacking Detections 9 | . 2 . 5 . . . 2 . Full Trace Events 1 | . . . 1 . . . . . Feedback Events . | . . . . . . . . . Feedback Blocked . | . . . . . . . . . Robot Schematics Acquired . | . . . . . . . . . Robots Built . | . . . . . . . . . Matter . | . . . . . . . . . Time . | . . . . . . . . . Total Robot Build Rating . | . . . . . . . . . Part Schematics Acquired 3 | . . . 3 . . . . . Parts Built . | . . . . . . . . . Matter . | . . . . . . . . . Time . | . . . . . . . . . Total Part Build Rating . | . . . . . . . . . Parts Repaired . | . . . . . . . . . Time . | . . . . . . . . . Parts Recycled . | . . . . . . . . . Recycled Matter . | . . . . . . . . . Retrieved Matter . | . . . . . . . . . Retrieved Components . | . . . . . . . . . Parts Scanalyzed . | . . . . . . . . . Part Schematics Acquired . | . . . . . . . . . Parts Damaged . | . . . . . . . . . Bothacking | -11 -10 -10 -9 -9 -9 -8 -8 -7 ------------ Run | Scr Mat Min Mat Min Exi Min Mat Fac Used RIF Installer . | . . . . . . . . . Robots Hacked . | . . . . . . . . . Non-combat . | . . . . . . . . . Combat . | . . . . . . . . . Robot Hacks Applied . | . . . . . . . . . Relay Couplers Released . | . . . . . . . . . Robots Rewired . | . . . . . . . . . Allies Hacked . | . . . . . . . . . Hacks Repelled . | . . . . . . . . . Allies | -11 -10 -10 -9 -9 -9 -8 -8 -7 -------- Run | Scr Mat Min Mat Min Exi Min Mat Fac Total Allies 4 | . . 1 . 3 . . . . Largest Group 3 | . . 1 . 3 3 3 2 . Highest-Rated Group 40 | . . 31 . 40 40 40 23 . Highest-Rated Ally 31 | . . 31 . 16 16 16 16 . Total Orders . | . . . . . . . . . Ally Attacks 52 | . . . . 14 . 25 13 . Total Damage 432 | . . . . 142 . 192 98 . Kills 12 | . . . . 4 . 5 3 . Allies Corrupted . | . . . . . . . . . Allies Melted . | . . . . . . . . . Intel | -11 -10 -10 -9 -9 -9 -8 -8 -7 ------- Run | Scr Mat Min Mat Min Exi Min Mat Fac Robot Analysis Total . | . . . . . . . . . Derelict Logs Recovered 1 | . . 1 . . . . . . Drone Launches . | . . . . . . . . . Drone Recoveries . | . . . . . . . . . Exploration | -11 -10 -10 -9 -9 -9 -8 -8 -7 ------------- Run | Scr Mat Min Mat Min Exi Min Mat Fac Turns Passed 5389 | 59 925 370 981 459 173 448 1752 222 Spaces Moved 5217 | 46 1041 660 954 588 221 600 874 233 Core 104 | 3 . . . . . . 101 . Treads . | . . . . . . . . . Legs 223 | 43 180 . . . . . . . Wheels . | . . . . . . . . . Hover 1742 | . . . . 536 221 600 385 . Flight 3148 | . 861 660 954 52 . . 388 233 Fastest Speed 24 | 50 34 34 31 34 56 56 24 24 Average Speed 54 | 115 50 34 33 54 56 56 94 51 Slowest Speed 250 | 120 120 34 34 56 56 56 250 102 Overloaded Moves . | . . . . . . . . . Propulsion Burnouts . | . . . . . . . . . Robots Hopped 13 | . 4 3 4 2 . . . . Cave-ins Triggered . | . . . . . . . . . Exploration Rate (%) 65 | 3 99 98 78 87 56 95 63 9 Regions Visited 8 Branch Regions 4 Pre-discovered Areas 2 | . . . . 1 1 . . . Known Exits Taken 6 | . . 1 1 1 1 1 1 . Unknown Exits Taken 2 | 1 1 . . . . . . . Scrap Searched 5 | . . 2 . 2 . 1 . . Spaces Dug 7 | . . . 7 . . . . . Terrain Destroyed 60 | . . 3 16 2 . 34 5 . Melee . | . . . . . . . . . Projectile 18 | . . . 9 2 . 2 5 . AOE 42 | . . 3 7 . . 32 . . Actions | -11 -10 -10 -9 -9 -9 -8 -8 -7 --------- Run | Scr Mat Min Mat Min Exi Min Mat Fac Total 7414 | 50 1359 777 1506 703 269 692 1735 323 Wait 1669 | . 208 79 385 78 49 57 734 79 Move 5184 | 45 1032 653 945 584 220 599 873 233 Hop 12 | . 4 3 4 1 . . . . Pick Up 14 | 1 3 . 3 1 . . 6 . Fast Attach 35 | 3 6 2 10 1 . . 11 2 Attach 8 | 1 1 . . 2 . . 4 . Detach 1 | . . . 1 . . . . . Swap 18 | . 4 2 5 1 . 2 4 . Drop 33 | . 4 1 11 3 . . 14 . Fire 324 | . 76 23 104 24 . 18 70 9 Melee . | . . . . . . . . . Ram . | . . . . . . . . . Kick . | . . . . . . . . . Crush . | . . . . . . . . . Escape Stasis . | . . . . . . . . . Rewire . | . . . . . . . . . Trap . | . . . . . . . . . Miscellaneous 116 | . 21 14 38 8 . 16 19 . Route ------- -11/Scrapyard -10/Materials (discovered 4 exits: *Mat x3 / [*Min]) -10/Mines (discovered 2 exits: *Mat x2) -9/Materials (discovered 4 exits: *Mat x2 / *Min x2) -9/Mines (discovered 2 exits: *Mat / *Exi) -9/Exiles -8/Mines (discovered 2 exits: *Mat x2) -8/Materials (discovered 2 exits: *Fac x2) -7/Factory History --------- Turn | Location | Event 4 | -11/Scrapyard | Upgraded with Propulsion slot (x1) 32 | -11/Scrapyard | Discovered new exit (range 14) 60 | -11/Scrapyard | Entered Materials 304 | -10/Materials | Build established: Mutant 365 | -10/Materials | Upgraded with Propulsion slot (x1) 374 | -10/Materials | Discovered new exit (range 9) 551 | -10/Materials | Discovered new exit (range 16) 619 | -10/Materials | Discovered new exit (range 16) 745 | -10/Materials | Reached level 2 794 | -10/Materials | Discovered new exit (range 16) 847 | -10/Materials | Upgraded with Utility slot (x1) 985 | -10/Materials | Entered Mines 1026 | -10/Mines | Met a Derelict bent on vengeance 1056 | -10/Mines | Build established: Scavenger-Mutant 1082 | -10/Mines | Identified exit to Materials 1153 | -10/Mines | Reached level 3 1184 | -10/Mines | Upgraded with Utility slot (x1) 1209 | -10/Mines | Received a Mining Laser from a helpful Derelict 1250 | -10/Mines | Discovered exit to Materials (range 15) 1355 | -10/Mines | Entered Materials 1357 | -9/Materials | Reached level 4 1663 | -9/Materials | Reached level 5 1806 | -9/Materials | Discovered new exit (range 16) 1985 | -9/Materials | Upgraded with Propulsion slot (x1) 1995 | -9/Materials | Discovered new exit (range 16) 2002 | -9/Materials | Destroyed 7 combat bots 2049 | -9/Materials | Reached level 6 2052 | -9/Materials | Identified exit to Mines 2097 | -9/Materials | Discovered exit to Mines (range 8) 2155 | -9/Materials | First assault squad dispatched 2168 | -9/Materials | Destroyed 8 combat bots 2175 | -9/Materials | Upgraded with Utility slot (x1) 2250 | -9/Materials | Discovered new exit (range 13) 2259 | -9/Materials | Reached level 7 2336 | -9/Materials | Entered Mines 2338 | -9/Mines | Discovered new exit (range 13) 2341 | -9/Mines | Identified exit to Materials 2353 | -9/Mines | Met a Derelict shopkeep closing up shop 2495 | -9/Mines | Assisted by bots powering up and referring to "LRC-V3" 2527 | -9/Mines | Reached level 8 2572 | -9/Mines | Learned location of Storage (-8) 2606 | -9/Mines | Deemed a non-threat by the Exiles lab entrance 2674 | -9/Mines | Excavation squad dispatched 2674 | -9/Mines | A large section of the Mines collapsed 2745 | -9/Mines | Discovered new exit (range 5) 2795 | -9/Mines | Identified exit to Exiles 2795 | -9/Mines | Entered Exiles 2795 | -9/Exiles | Accompanied by 3 allies 2811 | -9/Exiles | Met 8R-AWN 2841 | -9/Exiles | Met EX-HEX 2859 | -9/Exiles | Met EX-BIN 2865 | -9/Exiles | Met EX-DEC 2873 | -9/Exiles | Learned location of Zion (-7) 2932 | -9/Exiles | Discovered new exit (range 15) 2939 | -9/Exiles | Identified exit to Mines 2968 | -9/Exiles | Entered Mines 2968 | -8/Mines | Accompanied by 3 allies 2978 | -8/Mines | Reached level 9 3028 | -8/Mines | Discovered exit to Materials (range 9) 3028 | -8/Mines | Discovered exit to Materials (range 16) 3416 | -8/Mines | Entered Materials 3416 | -8/Materials | Accompanied by 2 allies 3418 | -8/Materials | Reached level 10 3517 | -8/Materials | Upgraded with Utility slot (x1) 3545 | -8/Materials | Reached level 11 3996 | -8/Materials | Discovered new exit (range 16) 4047 | -8/Materials | Upgraded with Propulsion slot (x1) 4146 | -8/Materials | Identified exit to Factory 4278 | -8/Materials | Discovered exit to Factory (range 4) 4413 | -8/Materials | Core integrity fell below 50% 5116 | -8/Materials | Reached level 12 5168 | -8/Materials | Entered Factory 5169 | -7/Factory | Core integrity fell below 50% 5170 | -7/Factory | Reached level 13 5318 | -7/Factory | Core integrity fell below 20% 5342 | -7/Factory | Upgraded with Power slot (x1) 5346 | -7/Factory | Upgraded with Power slot (x1) 5390 | -7/Factory | Destroyed by Y-54 Guardian with Flak Gun Last Messages --------------- R-06 Scavenger collects Lgt. Ion Engine. R-06 Scavenger collects Flight Unit. K-01 Serf collects debris. LOCATION=FACTORY GOAL=ESCAPE Reached level 13. O-16 Technician: "IFF HANDSHAKE FAILED. SECURING TERMINAL." O-16 Technician uses terminal to summon reinforcements. ALERT: Hostiles spotted, dispatching reinforcements to Terminal F007. O-16 Technician locks terminal. Triggered Heavy Explosive Trap. An explosion rips through the floor. G-47 Trooper destroyed. Aluminum Leg melted. G-47 Trooper destroyed. Upgraded: Power Slot (+1) Acquired Lgt. Deuterium Engine. Upgraded: Power Slot (+1) Acquired Lgt. Deuterium Engine. Flight Unit destroyed. Map ----- +----------------------------------------------------+ | ????????????????# #????????????????????????? | | ########??????### #????????????????????????? | | ??????? #????????????????????????? | | ????????? #????????????????????????? | | ????????? #????????????????????????? | | ??????????? #????????????????????????? | | ???????????? #????????????????????????? | | ###########???# #????????????????????????? | | # #???# #????????????????????????? | | # """" ##### #????????????????????????? | | + """" + #????????????????????????? | | # """" ##### #????????????????????????? | | # """" #???# #????????????????????????? | | # """" #???# #????????????????????????? | | ### """" #???# #????????????????????????? | | # #???# #????????????????????????? | | ############### #????????????????????????? | | ## # #????????????????????????? | | ## # #????????????????????????? | | ## """""" # #????????????????????????? | | ## """""" # #????????????????????????? | | ## """""" + #????????????????????????? | | ## """""" # #????????????????????????? | | ## """""" # #??##????????????????????? | | ## """""" # ### ##########???????????? | | ## """""" # #@ Y #???????????? | | [ ## """""" # k # T #???????????? | | [ ## """""" # # """" #???????????? | | [ ?# # # """"?????????????? | | ##############+## # """"?????????????? | | ?????????????# # """"?????????????? | | ?????????????# + #???????????? | | ?????????????# # """" #???????????? | | ?????????????# # """" #???????????? | | ????????+ # """" #???????????? | | ????????# # """" ]] #???????????? | | ??????? # ?? #???????????? | | ?????? ########???##????????????? | | ??????""""" """ #????????????????????????? | | ???????"""" """ #????????????????????????? | | ?????????"" """ #????????????????????????? | | ?????????"" ? #????????????????????????? | | ?????????? ?? #????????????????????????? | | ???????????? #????????????????????????? | | ????????????########+####????????????????????????? | | ?????????????????????????????????????????????????? | | ?????????????????????????????????????????????????? | | ?????????????????????????????????????????????????? | | ?????????????????????????????????????????????????? | | ?????????????????????????????????????????????????? | +----------------------------------------------------+ Best States ------------- Heat Dissipation 35 Energy Generation 32 Energy Capacity 275 Matter Stores 300 Matter Capacity 300 Sight Range 16 Robot Scan Range 13 Terrain Scan Density 10 Evasion (%) 65 Core Analysis 6 Armor Integrity Analysis 33 Particle Charging 15 Item Schematics ----------------- VTOL Module | -9/Materials | Extracted Com. Wheel | -9/Materials | Extracted Mni. Grenade Launcher | -9/Materials | Extracted Robot Schematics ------------------ None Fabricated ------------ Nothing Alien Tech Used ----------------- None Achievements -------------- Brute Force Can't Catch Me Quantum Hacking Challenges ------------ None RPGLIKE | -11 -10 -10 -9 -9 -9 -8 -8 -7 --------- Run | Scr Mat Min Mat Min Exi Min Mat Fac Levels Raised 12 | . 1 1 4 1 . 1 3 1 XP Earned 21305 | 3000 1910 1675 6052 1361 139 1795 3623 1750 XP Spent 20750 | 750 2500 1700 6200 . . . 8300 1300 Upgrades 26 | 2 5 3 7 . . . 7 2 Power Slot 2 | . . . . . . . . 2 Propulsion Slot 4 | 1 1 . 1 . . . 1 . Utility Slot 4 | . 1 1 1 . . . 1 . Inventory Capacity 2 | 1 1 . . . . . . . Ranged Accuracy 10 | . . 2 3 . . . 5 . TH Damage % 4 | . 2 . 2 . . . . . Protomatter Created 1091 | . 153 202 312 42 . 27 251 104 Integrity Restored 2195 | . 387 258 748 177 . 293 332 . Core 1803 | . 320 194 633 177 . 210 269 . Parts 392 | . 67 64 115 . . 83 63 . Protomatter Decayed 525 | . 18 114 75 42 . 17 155 104 Game ------ Seed ParticleGlidesysAnalyzer Manual? 0 Play Time 01:20:06 Cumulative 46.1 hours Start 2019.12.23 @ 18:08:46 End 2019.12.23 @ 19:55:07 Sessions 1 Manual Loads 0 Difficulty Rogue Special Mode Winter2019/RPGLIKE Game No. 48 Rogue 48 Adventurer 0 Explorer 0 Win Type - Total 0 Types 0/0/0/0/0/0/0 Lore% 20 Gallery% 25 Achievement% 26 Wizard Run 0 Options --------- ASCII 0 Keyboard 0 Movement Mouse Keybinds 0 Fullscreen 0 Font 32/SmallcapsGlow Map View 76x50 Tactical HUD 0 Map Filters NONE Filters NONE Steam 1 RUN: 2c9beb50-dec6-4a48-839f-51659e67c125